Cogmind - Beta 16.1 @@@ ROGUE MODE // 2026.03.21 @ 21:28:59 Player: Ceorik Result: Destroyed by Piercing Trap Performance ------------- Evolutions (0) 0 Regions Visited (3) 600 Robots Destroyed (30) 150 Value Destroyed (744) 744 Prototype IDs (3) 60 Alien Tech Used (0) 0 Bonus (115) 115 TOTAL SCORE: 1669 Bonus ------- Follower Combat Kills 115 Cogmind --------- Core Integrity 0/250 Matter 300/300 Energy 248/250 System Corruption 0% Temperature Cool (0) Movement Rolling (105) Ox1 Location -10/Subcaves Parts ------- > --- POWER (1) -------- Ion Engine > --- PROPULSION (2) --- Wheel Compact Wheel > --- UTILITY (2) ------ High-capacity Storage Unit V3-11A's Pendant > --- WEAPON (2) ------- High-powered Shotgun > --- INVENTORY (20) --- Ion Engine Light Nuclear Core Light Nuclear Core Light Treads Wheel Improved Heat Sink Large Storage Unit Compact Matter Pod (150) Compact Matter Pod (150) Advanced Visual Processing Unit Light Armor Plating Makeshift Light Armor Plating Makeshift Hacking Suite High-powered Tractor Beam Particle Gun EM Pulse Cannon Subdweller Beam Cannon Ion Cannon High-powered Shotgun Rocket Launcher Peak State ------------ > --- POWER ------------ Ion Engine > --- PROPULSION ------- Wheel Compact Wheel > --- UTILITY ---------- High-capacity Storage Unit Makeshift Light Armor Plating > --- WEAPON ----------- High-powered Shotgun High-powered Shotgun > --- INVENTORY -------- Ion Engine Ion Engine Light Nuclear Core Light Nuclear Core Light Treads Light Treads Wheel Improved Heat Sink Large Storage Unit Large Matter Pod Compact Matter Pod Compact Matter Pod Advanced Visual Processing Unit High-powered Tractor Beam Particle Gun EM Pulse Cannon Ion Cannon Rocket Launcher Datajack Mining Laser [Rating: 18] Favorites ----------- Power Ion Engine Engine Ion Engine Propulsion Wheel Treads Light Treads Wheel Wheel Utility High-capacity Storage Unit Device Improved Terrain Scanner Storage High-capacity Storage Unit Protection Makeshift Light Armor Plating Weapon High-powered Shotgun Energy Gun Particle Gun Energy Cannon Ion Cannon Ballistic Gun High-powered Shotgun Launcher Rocket Launcher Special Weapon Mining Laser Build | -11 -10 -10 -10 ------- Run | Yrd Mat Min Sub Slots Evolved . | . . . . Power . | . . . . Propulsion . | . . . . Utility . | . . . . Weapon . | . . . . Parts Attached 27 | 7 7 9 4 Power 5 | 1 2 1 1 Engine 5 | 1 2 1 1 Core . | . . . . Reactor . | . . . . Propulsion 5 | 2 2 1 . Treads 2 | . 2 . . Leg . | . . . . Wheel 3 | 2 . 1 . Hover . | . . . . Flight . | . . . . Utility 8 | 2 2 2 2 Device 4 | 1 1 1 1 Storage 2 | 1 1 . . Processor . | . . . . Hackware . | . . . . Protection 2 | . . 1 1 Artifact . | . . . . Weapon 9 | 2 1 5 1 Energy Gun 1 | . . 1 . Energy Cannon 1 | . . 1 . Ballistic Gun 5 | 2 1 2 . Ballistic Cannon . | . . . . Launcher 1 | . . 1 . Special Weapon 1 | . . . 1 Impact Weapon . | . . . . Slashing Weapon . | . . . . Piercing Weapon . | . . . . Special Melee Weapon . | . . . . Unidentified Prototypes 1 | . . . 1 Parts Lost 4 | . 1 2 1 Power 1 | . . 1 . Propulsion . | . . . . Utility 1 | . 1 . . Weapon 2 | . . 1 1 Highest Loss Streak 2 | . 1 2 1 To Critical Strikes . | . . . . Average Backups 17 | 2 10 19 19 Power 2 | . 2 3 3 Propulsion 2 | 1 2 3 2 Utility 5 | . . 6 8 Weapon 5 | . 4 6 5 Tool/Special . | . . . . Unused Backups 21 | . 2 5 14 Power 3 | . 1 . 2 Propulsion 1 | . . . 1 Utility 9 | . . 1 8 Weapon 7 | . 1 4 2 Tool/Special 1 | . . . 1 Average Slot Usage (%) 99 | . 98 99 100 Engine 13 | . 13 14 14 Treads 3 | . 8 2 . Wheel 24 | . 19 25 28 Device 9 | . 13 12 5 Storage 14 | . 14 14 14 Protection 4 | . . 1 8 Ballistic Gun 22 | . 27 27 16 Special Weapon 4 | . . . 10 Peak Build Rating 18 | 9 11 17 18 Average Rating 13 | 5 9 14 15 On Entrance 8 | . 9 11 14 Avg Prop Armor Cover (%) 9 | . 9 . . Naked Turns . | . . . . Heaviest Build 56 | 14 49 55 56 Greatest Support 40 | 26 40 26 26 Greatest Overweight (x) 13 | . 13 2 2 Average Overweight (x) 1 | . . 1 1 Largest Inventory Capacity 20 | 8 20 20 20 Average Capacity 18 | 6 15 20 20 Most Carried 20 | 6 17 20 20 Average Carried 17 | 2 10 19 19 Final Capacity 20 | 8 20 20 20 Final Carried 20 | 5 17 19 20 Class Distribution -------------------- 100% | Mutant Dominant Class ---------------- Mutant | -10/Materials Mutant | -10/Mines Mutant | -10/Subcaves Resources | -11 -10 -10 -10 ----------- Run | Yrd Mat Min Sub Matter Collected 1936 | 235 462 1092 147 Remotely . | . . . . Salvage Created 973 | 24 479 417 53 Parts 65 | 3 35 23 4 Haulers Intercepted 1 | . 1 . . Recyclers Shooed 1 | . . 1 . Parts Field Recycled . | . . . . Retrieved Matter . | . . . . Parts Self-Destructed 10 | . . . 10 Prevented . | . . . . Parts Restored . | . . . . Kills | -11 -10 -10 -10 ------- Run | Yrd Mat Min Sub Combat Hostiles Destroyed 22 | . 8 12 2 Guns 18 | . 8 9 1 AOE 4 | . . 3 1 Classes Destroyed 8 | 1 4 2 1 Worker 2 | . . 2 . Tunneler 2 | 1 1 . . Hauler 1 | . 1 . . Recycler 2 | . 1 1 . Operator 1 | . 1 . . Swarmer 6 | . . 6 . Grunt 15 | . 8 6 1 Subdweller 1 | . . . 1 Best Kill Streak 5 | 1 3 5 1 Combat Bots Only 4 | . 3 4 1 Max Kills in Single Turn 2 | 1 2 2 1 Gunslinging . | . . . . Exploded 2 | . . 2 1 Melee . | . . . . Uniques/NPCs Destroyed . | . . . . Combat | -11 -10 -10 -10 -------- Run | Yrd Mat Min Sub Hostile Shots Fired 98 | . 38 48 12 Missed 28 | . 9 14 5 Hits 70 | . 29 34 7 Projectile 70 | . 29 34 7 Critical Strikes 1 | . . 1 . Damage Taken 924 | . 383 406 135 Core 256 | . 97 96 63 Absorbed by Shields . | . . . . Core Remaining (%) 100 | 100 . . . Volleys Fired 102 | 5 46 38 13 Largest 2 | 2 2 2 2 Hottest 100 | 40 40 50 100 Shots Fired 191 | 10 92 74 15 Gun 178 | 10 92 72 4 Cannon . | . . . . Launcher 3 | . . 2 1 Special 10 | . . . 10 Kinetic 178 | 10 92 72 4 Thermal 10 | . . . 10 Explosive 3 | . . 2 1 Electromagnetic . | . . . . Robot Hit Streak 21 | 9 14 21 3 Robot Miss Streak 7 | . 7 4 3 Penetration Max . | . . . . Secondary Targets 1 | . . 1 . Max Gunslinging Chain 1 | . . 1 . Shots Hit Robots 123 | 9 56 55 3 Core Hits 56 | 2 27 25 2 Critical Kills 1 | . 1 . . Critical Parts Destroyed 1 | . . 1 . Critical Strikes 2 | . 1 1 . Destroy 2 | . 1 1 . Melee Attacks . | . . . . Impact . | . . . . Slashing . | . . . . Piercing . | . . . . Sneak Attacks . | . . . . Combat Hostiles . | . . . . Follow-up Attacks . | . . . . Damage Inflicted 1655 | 102 590 859 104 Guns 1403 | 102 590 665 46 Cannons . | . . . . Explosions 252 | . . 194 58 Melee . | . . . . Ramming . | . . . . Kinetic 1403 | 102 590 665 46 Thermal . | . . . . Explosive 252 | . . 194 58 Electromagnetic . | . . . . Impact . | . . . . Slashing . | . . . . Piercing . | . . . . Highest Corruption . | . . . . Average Corruption . | . . . . Corruption Purged . | . . . . Corruption Blocked . | . . . . Overload Shots . | . . . . Overflow Damage 38 | . . 38 . Projectiles . | . . . . Explosions 38 | . . 38 . Melee . | . . . . Knockbacks . | . . . . Impact . | . . . . Kinetic . | . . . . Secondary . | . . . . Self-Inflicted Damage . | . . . . Shots . | . . . . Rammed . | . . . . Targets Rammed . | . . . . Kicked . | . . . . Crushed . | . . . . Highest Temperature 34 | . 12 34 . Average Temperature 8 | . 7 8 . Received Heat Transfer 459 | . 213 210 36 Siege Activations . | . . . . Martial Activations . | . . . . Shielding Activations . | . . . . Robots Disrupted . | . . . . Combat Hostiles . | . . . . Robots Corrupted . | . . . . Combat Hostiles . | . . . . Parts Fried . | . . . . Impact Corruptions . | . . . . Robots Melted . | . . . . Combat Hostiles . | . . . . Parts Melted . | . . . . Heat Transferred . | . . . . Parts Sabotaged . | . . . . Parts Stolen . | . . . . Parts Stripped . | . . . . Power Chain Reactions . | . . . . Alert | -11 -10 -10 -10 ------- Run | Yrd Mat Min Sub Maximum Alert Level . | . . . . Low Security (%) 100 | 100 100 100 . Level 1 . | . . . . Level 2 . | . . . . Level 3 . | . . . . Level 4 . | . . . . Level 5 . | . . . . High Security . | . . . . Max Security . | . . . . Peak Influence 120 | 5 90 120 . Initial 4 | . . 4 . Average 39 | . 30 49 . Influence Increases 783 | 5 330 360 88 Destroy 0b10 Robot/C 440 | . 160 240 40 Destroy 0b10 Robot/NC 40 | 5 20 15 . Destroy Leader 112 | . 52 50 10 Allied During Kill 19 | . . 11 8 Successful Hack 23 | . 23 . . Disable Machine 15 | . . 15 . Destroy Structure 14 | . . 14 . Lose Combat Pursuer 120 | . 75 15 30 Influence Decreases 783 | 5 317 314 147 Entered New Map 40 | . . 9 31 Time Decay 690 | 5 298 295 92 Lost Part 20 | . 10 10 . Lost Ally 24 | . . . 24 Purge Threat 9 | . 9 . . Squads Dispatched 5 | . 4 1 . Investigation 2 | . 1 1 . Extermination . | . . . . Reinforcement 3 | . 3 . . Assault . | . . . . Garrison . | . . . . Intercept . | . . . . Searches Triggered . | . . . . Construction Impeded . | . . . . Haulers Reinforced . | . . . . Active Scanning Responses . | . . . . Cargo Convoy Interrupts . | . . . . Stealth | -11 -10 -10 -10 --------- Run | Yrd Mat Min Sub Distress Signals 4 | . 4 . . Communications Jammed . | . . . . Distress Signals . | . . . . Times Spotted 49 | . 24 13 12 Peak Tracking Total 6 | . 6 4 3 Tactical Retreats 5 | . 3 1 1 Traps | -11 -10 -10 -10 ------- Run | Yrd Mat Min Sub Traps Triggered 8 | . 6 . 2 Indirectly . | . . . . Trap Hack Attempts . | . . . . Triggered . | . . . . Disarmed . | . . . . Reprogrammed . | . . . . Reused . | . . . . Traps Extracted . | . . . . Installed . | . . . . Triggered . | . . . . Machines | -11 -10 -10 -10 ---------- Run | Yrd Mat Min Sub Machines Disabled 1 | . . 1 . Max in Single Turn 1 | . . 1 . Machines Repaired . | . . . . Machines Dismantled . | . . . . Machines Sabotaged . | . . . . Overloaded Fab Kills . | . . . . Hacking | -11 -10 -10 -10 --------- Run | Yrd Mat Min Sub Machines Accessed 8 | . 7 1 . Terminals 5 | . 5 . . Fabricators . | . . . . Repair Stations . | . . . . Recycling Units 2 | . 2 . . Scanalyzers . | . . . . Garrison Access . | . . . . Total Hacks 23 | . 22 1 . Successful 10 | . 9 1 . Failed 13 | . 13 . . Catastrophic 3 | . 3 . . Database Lockouts . | . . . . Manual 13 | . 13 . . Terminals 17 | . 17 . . Fabricators . | . . . . Repair Stations . | . . . . Recycling Units 5 | . 5 . . Scanalyzers . | . . . . Garrison Access . | . . . . Terminal Hacks 3 | . 2 1 . Prototype ID Bank 1 | . 1 . . Open Door 1 | . . 1 . Unreport Threat 1 | . 1 . . Fabricator Hacks . | . . . . Repair Station Hacks . | . . . . Recycling Unit Hacks 2 | . 2 . . Report Inventory 1 | . 1 . . Retrieve Components 1 | . 1 . . Scanalyzer . | . . . . Garrison Access Hacks . | . . . . Unauthorized Hacks 5 | . 5 . . Terminals 4 | . 4 . . Botnet 4 | . 4 . . Fabricators . | . . . . Repair Stations . | . . . . Recycling Units 1 | . 1 . . Mask 1 | . 1 . . Scanalyzers . | . . . . Garrison Access . | . . . . Data Cores Recovered . | . . . . Used . | . . . . Hacking Detections 7 | . 7 . . Full Trace Events . | . . . . Feedback Events . | . . . . Feedback Blocked . | . . . . Robot Schematics Acquired . | . . . . Robots Built . | . . . . Authchips . | . . . . Time . | . . . . Total Robot Build Rating . | . . . . Part Schematics Acquired . | . . . . Parts Built . | . . . . Authchips . | . . . . Time . | . . . . Total Part Build Rating . | . . . . Part Studies Acquired . | . . . . Parts Repaired . | . . . . Time . | . . . . Parts Recycled . | . . . . Recycled Matter . | . . . . Retrieved Matter . | . . . . Retrieved Components 4 | . 4 . . Parts Scanalyzed . | . . . . Part Schematics Acquired . | . . . . Parts Damaged . | . . . . Bothacking | -11 -10 -10 -10 ------------ Run | Yrd Mat Min Sub Used RIF Installer . | . . . . Robots Hacked . | . . . . Non-combat . | . . . . Combat . | . . . . Robot Hacks Applied . | . . . . Relay Couplers Released . | . . . . Fabnet Peak Effective % . | . . . . Robots Rewired . | . . . . Allies Hacked . | . . . . Hacks Repelled . | . . . . Allies | -11 -10 -10 -10 -------- Run | Yrd Mat Min Sub Total Allies 8 | . . 3 5 Largest Group 3 | . . 3 3 Highest-Rated Group 57 | . . 40 57 Highest-Rated Ally 19 | . . 16 19 Total Orders . | . . . . Ally Attacks 38 | . . . 38 Total Damage 462 | . . . 462 Kills 4 | . . . 4 Allies Corrupted . | . . . . Allies Melted . | . . . . Intel | -11 -10 -10 -10 ------- Run | Yrd Mat Min Sub Active Infowar (turns) 1749 | 1 868 880 . Terrain 1749 | 1 868 880 . Robot Analysis Total . | . . . . Derelict Logs Recovered 1 | . . 1 . Drone Launches . | . . . . Drone Recoveries . | . . . . Exploration | -11 -10 -10 -10 ------------- Run | Yrd Mat Min Sub Turns Passed 3379 | 64 902 976 1437 Spaces Moved 2290 | 37 544 527 1182 Core 2 | 1 1 . . Treads 30 | . 30 . . Legs . | . . . . Wheels 2258 | 36 513 527 1182 Hover . | . . . . Flight . | . . . . Fastest Speed 50 | 50 90 105 105 Average Speed 109 | 88 105 106 113 Slowest Speed 700 | 90 700 120 120 Overloaded Moves . | . . . . Propulsion Burnouts . | . . . . Robots Hopped . | . . . . Potential Cave-ins . | . . . . Cave-ins Triggered . | . . . . Exploration Rate (%) 59 | 3 90 85 61 Regions Visited 3 Branch Regions 2 Pre-discovered Areas . | . . . . Known Exits Taken . | . . . . Unknown Exits Taken 3 | 1 1 1 . Scrap Searched 7 | . . 2 5 Spaces Dug 6 | . . 6 . Terrain Destroyed 15 | . . 15 . Melee . | . . . . Projectile . | . . . . AOE 15 | . . 15 . Terrain Rammed . | . . . . Walls Destroyed . | . . . . Machines Disabled . | . . . . Actions | -11 -10 -10 -10 --------- Run | Yrd Mat Min Sub Total 2940 | 56 776 871 1237 Wait 418 | 2 137 262 17 Move 2287 | 36 543 526 1182 Hop . | . . . . Pick Up 32 | 6 12 9 5 Fast Attach 24 | 6 13 4 1 Attach 4 | 1 . 3 . Detach 3 | . . 2 1 Swap 48 | . 21 16 11 Drop 22 | . 4 11 7 Fire 102 | 5 46 38 13 Melee . | . . . . Ram . | . . . . Kick . | . . . . Crush . | . . . . Escape Stasis . | . . . . Rewire . | . . . . Trap . | . . . . Miscellaneous . | . . . . Route ------- -11/Scrapyard -10/Materials (discovered 3 exits: [*Mat x2] / *Min) -10/Mines (discovered 3 exits: [*Mat x2] / [*Sub]) -10/Subcaves (discovered 1 exit: [*Mat]) History --------- Turn | Location | Event 12 | -11/Scrapyard | Discovered new exit (range 15) 65 | -11/Scrapyard | Entered Materials 158 | -10/Materials | Discovered new exit (range 16) 318 | -10/Materials | Build established: Mutant 499 | -10/Materials | Discovered new exit (range 3) 734 | -10/Materials | Discovered new exit (range 11) 865 | -10/Materials | Derelicts attacked the area 967 | -10/Materials | Entered Mines 983 | -10/Mines | Learned Materials trap positions 1031 | -10/Mines | Received a Rocket Launcher from a helpful Derelict 1072 | -10/Mines | Core integrity fell below 50% 1143 | -10/Mines | Discovered new exit (range 6) 1277 | -10/Mines | Met a Derelict shopkeep closing up shop 1781 | -10/Mines | Assisted by bots powering up and referring to "LRC-V3" 1854 | -10/Mines | Discovered new exit (range 16) 1933 | -10/Mines | Discovered new exit (range 6) 1943 | -10/Mines | Entered Subcaves 1943 | -10/Subcaves | Accompanied by 3 allies 1974 | -10/Subcaves | Core integrity fell below 20% 2023 | -10/Subcaves | Shifting Twisted Machinery released Flamer 2034 | -10/Subcaves | A swath of the cavern ceiling suddenly collapsed 2097 | -10/Subcaves | Shifting Twisted Machinery released Sub. Laser 2274 | -10/Subcaves | Shifting Twisted Machinery released Mak. Hacking Suite 2277 | -10/Subcaves | Shifting Twisted Machinery released Battle Rifle 2293 | -10/Subcaves | Discovered new exit (range 6) 2849 | -10/Subcaves | Visited triangular shrine 2857 | -10/Subcaves | Found Prototype Device 2857 | -10/Subcaves | Identified V3-11A's Pendant 2862 | -10/Subcaves | Befriended Subdweller 2912 | -10/Subcaves | Befriended Subdweller 3158 | -10/Subcaves | Approached by friendly Subdweller 3302 | -10/Subcaves | Befriended Subdweller 3302 | -10/Subcaves | Befriended Subdweller 3380 | -10/Subcaves | Destroyed by Piercing Trap Last Messages --------------- 03179_ PG-Y95(u) deconstructs Twisted Machinery. 03180_ 78-C7U(u) builds Twisted Machinery. 03181_ PG-Y95(u) deconstructs Twisted Machinery. 03182_ 78-C7U(u) builds Twisted Machinery. 03183_ PG-Y95(u) deconstructs Twisted Machinery. 03184_ 78-C7U(u) builds Twisted Machinery. 03185_ PG-Y95(u) deconstructs Twisted Machinery. 03186_ 78-C7U(u) builds Twisted Machinery. 03187_ PG-Y95(u) deconstructs Twisted Machinery. 03188_ 78-C7U(u) builds Twisted Machinery. 03189_ PG-Y95(u) deconstructs Twisted Machinery. 03190_ 78-C7U(u) builds Twisted Machinery. 03191_ PG-Y95(u) deconstructs Twisted Machinery. 03268_ Subatomizers dissect the Disposable Heat Sink. 03302_ SR-JZP(R): "UGOIGO!" 03302_ 61-ABB(R): "STR18!" 03380_ Triggered Piercing Trap. 03380_ Spikes shoot up from the floor. 03380_ Mining Laser destroyed. Map ----- +----------------------------------------------------+ | ???????????????????????????????????? | | ???????????????????????????????????? | | ???????????????????????????????????? | | ???????????????????????????????????? | | ???????????????????????????????????? | | ???????????????????????????????????? | | ???????????????????????????????????? | | ???????????????????????????????????? | | ???????????????????????????????????? | | ???????????????????????????????????? | | ???????????????????????????????????? | | ???????????????????????????????????? | | ???????????????????????????????????? | | ???????????????????????????????????? | | ???????????????????????????????????? | | ???????????????????????????????????? | | ???????????????????? ?????????????? | | ??????????????????? ???????????? | | ??????????????????? ???????????? | | ??????????????????# ????????????? | | ????#######?????## #????????????? | | ????<< <<<###?? #????????????? | | ??? <<< <<< <### #?????????????? | | ??#<< < <<< ## #?????????????? | | ?????? < < ## ##????????????? | | ?????????# @ # #????????????? | | ?????????### ## ??????????????? | | ??????????# #" #?????????????????? | | ??????????# #?????????????????? | | ??????????# R ###???????????????? | | ??????????# #